{"text_format":"3","workbook":"xlsx","n_sheets":2,"sheets":["ملخص الموازنة","تفاصيل الموازنة"],"not_rendered":{"images":1,"defined_names":1},"read":"whole","date_system":"1900"}

{"sheet":"ملخص الموازنة","index":0,"n_rows":28,"n_cols":7,"rows_kept":28}
[{"$nulls":6}," "]
[]
[null,"إجمالي موازنة حفل الزفاف",{"v":20000,"d":"ر.س.‏ 20,000"}]
[]
[null,"المصاريف","التوزيع \n%","الموازنة المخصصة","مُقدر \nالتكاليف","الفعلي \nالتكاليف"]
[null,"الاستقبال",{"v":0.5,"d":"50%"},{"$f":"إجمالي_موازنة_حفل_الزفاف*'ملخص الموازنة'!$C6","v":{"v":10000,"d":"ر.س.‏ 10,000"}},{"$f":"Table_Reception[[#Totals],[التكاليف المقدرة]]","v":{"v":0,"d":"ر.س.‏ 0"}},{"$f":"Table_Reception[[#Totals],[التكاليف الفعلية]]","v":{"v":0,"d":"ر.س.‏ 0"}}]
[null,"الملابس",{"v":0.1,"d":"10%"},{"$f":"إجمالي_موازنة_حفل_الزفاف*'ملخص الموازنة'!$C7","v":{"v":2000,"d":"ر.س.‏ 2,000"}},{"$f":"Table_Attire[[#Totals],[التكاليف المقدرة]]","v":{"v":0,"d":"ر.س.‏ 0"}},{"$f":"Table_Attire[[#Totals],[التكاليف الفعلية]]","v":{"v":0,"d":"ر.س.‏ 0"}}]
[null,"الأزهار والزخرفة",{"v":0.1,"d":"10%"},{"$f":"إجمالي_موازنة_حفل_الزفاف*'ملخص الموازنة'!$C8","v":{"v":2000,"d":"ر.س.‏ 2,000"}},{"$f":"Table_FlowersAndDecorations[[#Totals],[التكاليف المقدرة]]","v":{"v":0,"d":"ر.س.‏ 0"}},{"$f":"Table_FlowersAndDecorations[[#Totals],[التكاليف الفعلية]]","v":{"v":0,"d":"ر.س.‏ 0"}}]
[null,"الموسيقى",{"v":0.1,"d":"10%"},{"$f":"إجمالي_موازنة_حفل_الزفاف*'ملخص الموازنة'!$C9","v":{"v":2000,"d":"ر.س.‏ 2,000"}},{"$f":"Table_Music[[#Totals],[التكاليف المقدرة]]","v":{"v":0,"d":"ر.س.‏ 0"}},{"$f":"Table_Music[[#Totals],[التكاليف الفعلية]]","v":{"v":0,"d":"ر.س.‏ 0"}}]
[null,"الصور الفوتوغرافية والفيديو",{"v":0.1,"d":"10%"},{"$f":"إجمالي_موازنة_حفل_الزفاف*'ملخص الموازنة'!$C10","v":{"v":2000,"d":"ر.س.‏ 2,000"}},{"$f":"Table_PhotographsAndVideo[[#Totals],[التكاليف المقدرة]]","v":{"v":0,"d":"ر.س.‏ 0"}},{"$f":"Table_PhotographsAndVideo[[#Totals],[التكاليف الفعلية]]","v":{"v":0,"d":"ر.س.‏ 0"}}]
[null,"هدايا حفل الزواج والهدايا",{"v":0.03,"d":"3%"},{"$f":"إجمالي_موازنة_حفل_الزفاف*'ملخص الموازنة'!$C11","v":{"v":600,"d":"ر.س.‏ 600"}},{"$f":"Table_FavorsAndGifts[[#Totals],[التكاليف المقدرة]]","v":{"v":0,"d":"ر.س.‏ 0"}},{"$f":"Table_FavorsAndGifts[[#Totals],[التكاليف الفعلية]]","v":{"v":0,"d":"ر.س.‏ 0"}}]
[null,"الحفل",{"v":0.02,"d":"2%"},{"$f":"إجمالي_موازنة_حفل_الزفاف*'ملخص الموازنة'!$C12","v":{"v":400,"d":"ر.س.‏ 400"}},{"$f":"Table_Ceremony[[#Totals],[التكاليف المقدرة]]","v":{"v":0,"d":"ر.س.‏ 0"}},{"$f":"Table_Ceremony[[#Totals],[التكاليف الفعلية]]","v":{"v":0,"d":"ر.س.‏ 0"}}]
[null,"الخطابات",{"v":0.02,"d":"2%"},{"$f":"إجمالي_موازنة_حفل_الزفاف*'ملخص الموازنة'!$C13","v":{"v":400,"d":"ر.س.‏ 400"}},{"$f":"Table_Stationery[[#Totals],[التكاليف المقدرة]]","v":{"v":0,"d":"ر.س.‏ 0"}},{"$f":"Table_Stationery[[#Totals],[التكاليف الفعلية]]","v":{"v":0,"d":"ر.س.‏ 0"}}]
[null,"خواتم الزواج",{"v":0.02,"d":"2%"},{"$f":"إجمالي_موازنة_حفل_الزفاف*'ملخص الموازنة'!$C14","v":{"v":400,"d":"ر.س.‏ 400"}},{"$f":"Table_WeddingRings[[#Totals],[التكاليف المقدرة]]","v":{"v":0,"d":"ر.س.‏ 0"}},{"$f":"Table_WeddingRings[[#Totals],[التكاليف الفعلية]]","v":{"v":0,"d":"ر.س.‏ 0"}}]
[null,"وسائل النقل",{"v":0.01,"d":"1%"},{"$f":"إجمالي_موازنة_حفل_الزفاف*'ملخص الموازنة'!$C15","v":{"v":200,"d":"ر.س.‏ 200"}},{"$f":"Table_Transportation[[#Totals],[التكاليف المقدرة]]","v":{"v":0,"d":"ر.س.‏ 0"}},{"$f":"Table_Transportation[[#Totals],[التكاليف الفعلية]]","v":{"v":0,"d":"ر.س.‏ 0"}}]
[null,"الإجمالي",{"$f":"SUM(C6:C15)","v":{"v":1,"d":"100%"}},{"$f":"SUM(D6:D15)","v":{"v":20000,"d":"ر.س.‏ 20,000"}},{"v":0,"d":"ر.س.‏ 0"},{"v":0,"d":"ر.س.‏ 0"}]
[]
[null,"المساهمات"]
[null,"مصدر التبرعات","المساهمة"]
[null,"المدخرات",{"v":10000,"d":"ر.س.‏ 10,000"}]
[null,"أم وأب \"الشريك 1\"",{"v":4000,"d":"ر.س.‏ 4,000"}]
[null,"أجداد \"الشريك 1\"",{"v":2000,"d":"ر.س.‏ 2,000"}]
[null,"أم وأب \"الشريك 2\"",{"v":4000,"d":"ر.س.‏ 4,000"}]
[null,"أجداد \"الشريك 2\"",{"v":4000,"d":"ر.س.‏ 4,000"}]
[null,"مساهمات أخرى",{"v":2000,"d":"ر.س.‏ 2,000"}]
[null,"الإجمالي",{"$f":"SUBTOTAL(109,Table_Contributions[المساهمة])","v":{"v":26000,"d":"ر.س.‏ 26,000"}}]
[]
[null,{"$f":"IF(Table_Contributions[[#Totals],[المساهمة]]<إجمالي_موازنة_حفل_الزفاف,\"الفرق لإنشاء\",\"الأموال الإضافية المتوفرة\")","v":"الأموال الإضافية المتوفرة"},{"$f":"IF(Table_Contributions[[#Totals],[المساهمة]]<إجمالي_موازنة_حفل_الزفاف,إجمالي_موازنة_حفل_الزفاف-Table_Contributions[[#Totals],[المساهمة]],Table_Contributions[[#Totals],[المساهمة]]-إجمالي_موازنة_حفل_الزفاف)","v":{"v":6000,"d":"ر.س.‏ 6,000"}}]

{"sheet":"تفاصيل الموازنة","index":1,"n_rows":80,"n_cols":4,"rows_kept":80}
[]
[null,"الاستقبال","التكاليف المقدرة","التكاليف الفعلية"]
[null,"مكان الدعوى والإيجارات"]
[null,"الطعام والخدمة"]
[null,"المشروبات"]
[null,"الكعكة"]
[null,"مصاريف متنوعة"]
[null,"الإجمالي",{"$f":"SUBTOTAL(109,Table_Reception[التكاليف المقدرة])","v":{"v":0,"d":"ر.س.‏ 0.00"}},{"$f":"SUBTOTAL(109,Table_Reception[التكاليف الفعلية])","v":{"v":0,"d":"ر.س.‏ 0.00"}}]
[]
[null,"الملابس","التكاليف المقدرة","التكاليف الفعلية"]
[null,"التكس و/أو البدلة و/أو الفساتين"]
[null,"التعديلات"]
[null,"غطاء الرأس والوشاح"]
[null,"الملحقات"]
[null,"الشعر والتجميل"]
[null,"مصاريف متنوعة"]
[null,"الإجمالي",{"$f":"SUBTOTAL(109,Table_Attire[التكاليف المقدرة])","v":{"v":0,"d":"ر.س.‏ 0.00"}},{"$f":"SUBTOTAL(109,Table_Attire[التكاليف الفعلية])","v":{"v":0,"d":"ر.س.‏ 0.00"}}]
[]
[null,"الأزهار والزخرفة","التكاليف المقدرة","التكاليف الفعلية"]
[null,"ترتيبات الزهور للحفل"]
[null,"عصابة من الورد للفتيات الصغيرات وسلة"]
[null,"وسادة الخاتم"]
[null,"باقات الزهور"]
[null,"ورود البذلات"]
[null,"الزهور الصغيرة للعروس والأصدقاء"]
[null,"زينة قاعة الاستقبال"]
[null,"الإضاءة"]
[null,"مصاريف متنوعة"]
[null,"الإجمالي",{"$f":"SUBTOTAL(109,Table_FlowersAndDecorations[التكاليف المقدرة])","v":{"v":0,"d":"ر.س.‏ 0.00"}},{"$f":"SUBTOTAL(109,Table_FlowersAndDecorations[التكاليف الفعلية])","v":{"v":0,"d":"ر.س.‏ 0.00"}}]
[]
[null,"الموسيقى","التكاليف المقدرة","التكاليف الفعلية"]
[null,"موسيقيون الحفل"]
[null,"موسيقيون ساعة الكوكتيل"]
[null,"فرقة الاستقبال أو موسيقى (الديجي) أو الترفيه"]
[null,"استئجار نظام الصوت أو قاعة الرقص"]
[null,"مصاريف متنوعة"]
[null,"الإجمالي",{"$f":"SUBTOTAL(109,Table_Music[التكاليف المقدرة])","v":{"v":0,"d":"ر.س.‏ 0.00"}},{"$f":"SUBTOTAL(109,Table_Music[التكاليف الفعلية])","v":{"v":0,"d":"ر.س.‏ 0.00"}}]
[]
[null,"الصور الفوتوغرافية والفيديو","التكاليف المقدرة","التكاليف الفعلية"]
[null,"التصوير"]
[null,"تصوير الفيديو"]
[null,"مطبوعات وألبومات إضافية"]
[null,"مصاريف متنوعة"]
[null,"الإجمالي",{"$f":"SUBTOTAL(109,Table_PhotographsAndVideo[التكاليف المقدرة])","v":{"v":0,"d":"ر.س.‏ 0.00"}},{"$f":"SUBTOTAL(109,Table_PhotographsAndVideo[التكاليف الفعلية])","v":{"v":0,"d":"ر.س.‏ 0.00"}}]
[]
[null,"هدايا حفل الزواج والهدايا","التكاليف المقدرة","التكاليف الفعلية"]
[null,"هدايا الترحيب"]
[null,"هدايا الحفلة"]
[null,"مصاريف متنوعة"]
[null,"الإجمالي",{"$f":"SUBTOTAL(109,Table_FavorsAndGifts[التكاليف المقدرة])","v":{"v":0,"d":"ر.س.‏ 0.00"}},{"$f":"SUBTOTAL(109,Table_FavorsAndGifts[التكاليف الفعلية])","v":{"v":0,"d":"ر.س.‏ 0.00"}}]
[]
[null,"الحفل","التكاليف المقدرة","التكاليف الفعلية"]
[null,"رسوم الموقع"]
[null,"رسوم الشيخ/الكاهن أو التبرع للجامع/الكنيسة"]
[null,"مصاريف متنوعة"]
[null,"الإجمالي",{"$f":"SUBTOTAL(109,Table_Ceremony[التكاليف المقدرة])","v":{"v":0,"d":"ر.س.‏ 0.00"}},{"$f":"SUBTOTAL(109,Table_Ceremony[التكاليف الفعلية])","v":{"v":0,"d":"ر.س.‏ 0.00"}}]
[]
[null,"الخطابات","التكاليف المقدرة","التكاليف الفعلية"]
[null,"بطاقات \"حفظ التاريخ\""]
[null,"الدعوات وطلبات الاستجابة"]
[null,"برنامج الحفل"]
[null,"بطاقات الجلوس والمكان"]
[null,"بطاقات القوائم"]
[null,"ملاحظات الشكر"]
[null,"رسوم البريد"]
[null,"مصاريف متنوعة"]
[null,"الإجمالي",{"$f":"SUBTOTAL(109,Table_Stationery[التكاليف المقدرة])","v":{"v":0,"d":"ر.س.‏ 0.00"}},{"$f":"SUBTOTAL(109,Table_Stationery[التكاليف الفعلية])","v":{"v":0,"d":"ر.س.‏ 0.00"}}]
[]
[null,"خواتم الزواج","التكاليف المقدرة","التكاليف الفعلية"]
[null,"خواتم الزواج"]
[null,"ملحقات الخاتم"]
[null,"الإجمالي",{"$f":"SUBTOTAL(109,Table_WeddingRings[التكاليف المقدرة])","v":{"v":0,"d":"ر.س.‏ 0.00"}},{"$f":"SUBTOTAL(109,Table_WeddingRings[التكاليف الفعلية])","v":{"v":0,"d":"ر.س.‏ 0.00"}}]
[]
[null,"وسيلة النقل","التكاليف المقدرة","التكاليف الفعلية"]
[null,"إيجار السيارة الرئيسية"]
[null,"إيجار سيارات الضيوف"]
[null,"وسائل النقل للضيوف خارج المدينة"]
[null,"خدمة صف السيارات"]
[null,"مصاريف متنوعة"]
[null,"الإجمالي",{"$f":"SUBTOTAL(109,Table_Transportation[التكاليف المقدرة])","v":{"v":0,"d":"ر.س.‏ 0.00"}},{"$f":"SUBTOTAL(109,Table_Transportation[التكاليف الفعلية])","v":{"v":0,"d":"ر.س.‏ 0.00"}}]